[Event "January 2 Early 2024"]
[Site "https://www.chess.com"]
[Date "2024.01.02"]
[Round "6"]
[White "Bartel, Michal"]
[Black "Materia, Marco"]
[Result "0-1"]
[Board "41"]
[TimeControl "180+1"]
[WhiteFideId "1119257"]
[BlackFideId "45150451"]
[WhiteElo "2655"]
[BlackElo "2835"]
[WhiteTeam "POL"]
[BlackTeam "FRA"]
[WhiteClock "0:00:00"]
[BlackClock "0:00:50"]

1. e4 {[%clk 0:03:00]}  c5 {[%clk 0:02:59]} 2. Ne2 {[%clk 0:03:00]}  Nc6 {[%clk 0:02:58]} 3. g3 {[%clk 0:03:01]}  Nf6 {[%clk 0:02:58]} 4. Bg2 {[%clk 0:03:01]}  g6 {[%clk 0:02:58]} 5. c3 {[%clk 0:02:59]}  d5 {[%clk 0:02:58]} 6. exd5 {[%clk 0:02:57]}  Nxd5 {[%clk 0:02:58]} 7. d4 {[%clk 0:02:57]}  Nf6 {[%clk 0:02:48]} 8. d5 {[%clk 0:02:49]}  Ne5 {[%clk 0:02:41]} 9. f4 {[%clk 0:02:46]}  Ned7 {[%clk 0:02:39]} 10. c4 {[%clk 0:02:44]}  Bg7 {[%clk 0:02:39]} 11. Nbc3 {[%clk 0:02:43]}  O-O {[%clk 0:02:39]} 12. O-O {[%clk 0:02:43]}  Nb6 {[%clk 0:02:38]} 13. b3 {[%clk 0:02:41]}  e6 {[%clk 0:02:37]} 14. dxe6 {[%clk 0:02:22]}  fxe6 {[%clk 0:02:30]} 15. Be3 {[%clk 0:02:20]}  Qe7 {[%clk 0:02:27]} 16. Qc2 {[%clk 0:02:09]}  e5 {[%clk 0:02:18]} 17. Rae1 {[%clk 0:02:08]}  Bf5 {[%clk 0:02:18]} 18. Qc1 {[%clk 0:02:03]}  e4 {[%clk 0:02:14]} 19. h3 {[%clk 0:01:51]}  h5 {[%clk 0:02:14]} 20. Rd1 {[%clk 0:01:47]}  Rfd8 {[%clk 0:02:10]} 21. Rxd8+ {[%clk 0:01:46]}  Rxd8 {[%clk 0:02:10]} 22. Rd1 {[%clk 0:01:46]}  Rd3 {[%clk 0:02:10]} 23. Kh2 {[%clk 0:01:23]}  h4 {[%clk 0:01:58]} 24. Bf2 {[%clk 0:00:55]}  hxg3+ {[%clk 0:01:48]} 25. Bxg3 {[%clk 0:00:55]}  Qe6 {[%clk 0:01:13]} 26. Rxd3 {[%clk 0:00:43]}  exd3 {[%clk 0:01:12]} 27. Ng1 {[%clk 0:00:44]}  Nh5 {[%clk 0:01:09]} 28. Nd5 {[%clk 0:00:36]}  Nxg3 {[%clk 0:01:08]} 29. Kxg3 {[%clk 0:00:33]}  Nc8 {[%clk 0:01:06]} 30. Qe3 {[%clk 0:00:28]}  Nd6 {[%clk 0:00:59]} 31. Qxe6+ {[%clk 0:00:18]}  Bxe6 {[%clk 0:00:59]} 32. Kf2 {[%clk 0:00:14]}  Bd4+ {[%clk 0:00:58]} 33. Kf1 {[%clk 0:00:14]}  d2 {[%clk 0:00:56]} 34. Bf3 {[%clk 0:00:14]}  Ne4 {[%clk 0:00:50]} 35. Bd1 {[%clk 0:00:14]}  Bxd5 {[%clk 0:00:50]} 36. cxd5 {[%clk 0:00:14]}  Bxg1 {[%clk 0:00:49]} 37. Kxg1 {[%clk 0:00:14]}  Nc3 {[%clk 0:00:50]} 38. Bc2 {[%clk 0:00:14]}  d1=Q+ {[%clk 0:00:50]} 39. Bxd1 {[%clk 0:00:15]}  Nxd1 {[%clk 0:00:51]} 40. Kg2 {[%clk 0:00:00]}  Ne3+ {[%clk 0:00:50]} 0-1

[Event "January 2 Early 2024"]
[Site "https://www.chess.com"]
[Date "2024.01.02"]
[Round "6"]
[White "Bordi, Kevin"]
[Black "Papasimakopoulos, Alexandros"]
[Result "0-1"]
[Board "43"]
[TimeControl "180+1"]
[WhiteFideId "621862"]
[BlackFideId "4244125"]
[WhiteElo "2808"]
[BlackElo "2643"]
[WhiteTeam "MNC"]
[BlackTeam "GRE"]
[WhiteClock "0:00:06"]
[BlackClock "0:00:48"]

1. d4 {[%clk 0:03:00]}  d5 {[%clk 0:02:59]} 2. Bf4 {[%clk 0:03:00]}  c5 {[%clk 0:02:58]} 3. e3 {[%clk 0:03:01]}  Nc6 {[%clk 0:02:59]} 4. c3 {[%clk 0:03:01]}  Qb6 {[%clk 0:02:59]} 5. Qb3 {[%clk 0:02:59]}  c4 {[%clk 0:03:00]} 6. Qxb6 {[%clk 0:02:59]}  axb6 {[%clk 0:02:59]} 7. Na3 {[%clk 0:02:58]}  Bf5 {[%clk 0:02:52]} 8. Nb5 {[%clk 0:02:54]}  Ra5 {[%clk 0:02:50]} 9. a4 {[%clk 0:02:42]}  Nf6 {[%clk 0:02:49]} 10. Be2 {[%clk 0:02:20]}  e6 {[%clk 0:02:48]} 11. Nf3 {[%clk 0:02:09]}  Be7 {[%clk 0:02:44]} 12. Bc7 {[%clk 0:01:45]}  Nd7 {[%clk 0:02:43]} 13. Bd6 {[%clk 0:01:15]}  Bc2 {[%clk 0:02:37]} 14. Bd1 {[%clk 0:01:09]}  Bxd1 {[%clk 0:02:30]} 15. Kxd1 {[%clk 0:01:10]}  Bxd6 {[%clk 0:02:28]} 16. Nxd6+ {[%clk 0:01:09]}  Ke7 {[%clk 0:02:29]} 17. Nb5 {[%clk 0:01:03]}  Rha8 {[%clk 0:02:28]} 18. Kc2 {[%clk 0:00:59]}  Rxa4 {[%clk 0:02:27]} 19. Rxa4 {[%clk 0:00:55]}  Rxa4 {[%clk 0:02:28]} 20. Re1 {[%clk 0:00:54]}  f5 {[%clk 0:02:19]} 21. Nd2 {[%clk 0:00:54]}  Ra5 {[%clk 0:02:18]} 22. Na3 {[%clk 0:00:52]}  b5 {[%clk 0:02:19]} 23. f3 {[%clk 0:00:46]}  b4 {[%clk 0:02:19]} 24. Nab1 {[%clk 0:00:46]}  bxc3 {[%clk 0:02:15]} 25. bxc3 {[%clk 0:00:47]}  Ra2+ {[%clk 0:02:13]} 26. Kd1 {[%clk 0:00:43]}  b5 {[%clk 0:02:07]} 27. e4 {[%clk 0:00:43]}  fxe4 {[%clk 0:02:08]} 28. fxe4 {[%clk 0:00:43]}  Kd6 {[%clk 0:02:06]} 29. Re2 {[%clk 0:00:43]}  Ra1 {[%clk 0:02:02]} 30. Kc2 {[%clk 0:00:41]}  b4 {[%clk 0:02:02]} 31. Kb2 {[%clk 0:00:39]}  Ra8 {[%clk 0:02:02]} 32. Rf2 {[%clk 0:00:30]}  Nb6 {[%clk 0:02:01]} 33. Rf7 {[%clk 0:00:25]}  bxc3+ {[%clk 0:01:56]} 34. Nxc3 {[%clk 0:00:21]}  Nxd4 {[%clk 0:01:55]} 35. exd5 {[%clk 0:00:20]}  exd5 {[%clk 0:01:54]} 36. Rxg7 {[%clk 0:00:20]}  Rf8 {[%clk 0:01:19]} 37. Nd1 {[%clk 0:00:14]}  Na4+ {[%clk 0:01:17]} 38. Ka3 {[%clk 0:00:14]}  Ra8 {[%clk 0:01:17]} 39. Kb4 {[%clk 0:00:13]}  Nc6+ {[%clk 0:01:00]} 40. Kb5 {[%clk 0:00:12]}  c3 {[%clk 0:01:01]} 41. Nb3 {[%clk 0:00:11]}  c2 {[%clk 0:00:59]} 42. Ne3 {[%clk 0:00:11]}  Nc3+ {[%clk 0:00:58]} 43. Kb6 {[%clk 0:00:11]}  Rb8+ {[%clk 0:00:58]} 44. Rb7 {[%clk 0:00:11]}  Na4+ {[%clk 0:00:51]} 45. Ka6 {[%clk 0:00:09]}  Nc5+ {[%clk 0:00:50]} 46. Nxc5 {[%clk 0:00:09]}  c1=Q {[%clk 0:00:49]} 47. Rd7+ {[%clk 0:00:09]}  Kxc5 {[%clk 0:00:49]} 48. Rxd5+ {[%clk 0:00:06]}  Kb4 {[%clk 0:00:48]} 0-1

[Event "January 2 Early 2024"]
[Site "https://www.chess.com"]
[Date "2024.01.02"]
[Round "6"]
[White "Kilpatrick, Callum"]
[Black "Gabrielian, Artur"]
[Result "0-1"]
[Board "46"]
[TimeControl "180+1"]
[WhiteFideId "414425"]
[BlackFideId "4131002"]
[WhiteElo "2554"]
[BlackElo "2801"]
[WhiteTeam "ENG"]
[BlackTeam "RUS"]
[WhiteClock "0:00:52"]
[BlackClock "0:00:15"]

1. e4 {[%clk 0:02:59]}  e5 {[%clk 0:02:57]} 2. Nc3 {[%clk 0:02:57]}  Nf6 {[%clk 0:02:56]} 3. g3 {[%clk 0:02:57]}  d5 {[%clk 0:02:56]} 4. exd5 {[%clk 0:02:57]}  Nxd5 {[%clk 0:02:56]} 5. Bg2 {[%clk 0:02:58]}  Nf6 {[%clk 0:02:56]} 6. Nge2 {[%clk 0:02:55]}  Nc6 {[%clk 0:02:56]} 7. O-O {[%clk 0:02:50]}  h5 {[%clk 0:02:56]} 8. Re1 {[%clk 0:02:45]}  h4 {[%clk 0:02:56]} 9. d4 {[%clk 0:02:45]}  hxg3 {[%clk 0:02:56]} 10. Nxg3 {[%clk 0:02:34]}  Nxd4 {[%clk 0:02:01]} 11. Rxe5+ {[%clk 0:02:28]}  Ne6 {[%clk 0:02:00]} 12. Qxd8+ {[%clk 0:02:18]}  Kxd8 {[%clk 0:02:00]} 13. Re1 {[%clk 0:02:09]}  c6 {[%clk 0:01:54]} 14. Be3 {[%clk 0:02:04]}  Kc7 {[%clk 0:01:52]} 15. a3 {[%clk 0:01:59]}  Ng4 {[%clk 0:01:51]} 16. h3 {[%clk 0:01:52]}  Nxe3 {[%clk 0:01:51]} 17. Rxe3 {[%clk 0:01:53]}  Bc5 {[%clk 0:01:46]} 18. Rf3 {[%clk 0:01:53]}  Ng5 {[%clk 0:01:42]} 19. Rd3 {[%clk 0:01:51]}  Nxh3+ {[%clk 0:01:39]} 20. Bxh3 {[%clk 0:01:50]}  Bxh3 {[%clk 0:01:36]} 21. Nce4 {[%clk 0:01:50]}  Be7 {[%clk 0:01:31]} 22. Re1 {[%clk 0:01:46]}  Rad8 {[%clk 0:01:28]} 23. Rf3 {[%clk 0:01:44]}  Be6 {[%clk 0:01:25]} 24. Nf5 {[%clk 0:01:42]}  Bxf5 {[%clk 0:01:25]} 25. Rxf5 {[%clk 0:01:43]}  f6 {[%clk 0:01:18]} 26. Ng5 {[%clk 0:01:43]}  Rde8 {[%clk 0:00:59]} 27. Ne6+ {[%clk 0:01:37]}  Kd7 {[%clk 0:01:00]} 28. Nf4 {[%clk 0:01:28]}  Bd6 {[%clk 0:00:54]} 29. Rd1 {[%clk 0:01:29]}  Kc7 {[%clk 0:00:53]} 30. Nd3 {[%clk 0:01:26]}  Rh4 {[%clk 0:00:50]} 31. Rd2 {[%clk 0:01:21]}  Re6 {[%clk 0:00:32]} 32. Kg2 {[%clk 0:01:21]}  g6 {[%clk 0:00:32]} 33. Rf3 {[%clk 0:01:21]}  f5 {[%clk 0:00:32]} 34. b4 {[%clk 0:01:20]}  a5 {[%clk 0:00:30]} 35. Rh3 {[%clk 0:01:16]}  Rxh3 {[%clk 0:00:30]} 36. Kxh3 {[%clk 0:01:17]}  axb4 {[%clk 0:00:30]} 37. axb4 {[%clk 0:01:18]}  b5 {[%clk 0:00:30]} 38. Kg2 {[%clk 0:01:17]}  Re4 {[%clk 0:00:29]} 39. c3 {[%clk 0:01:12]}  Rc4 {[%clk 0:00:29]} 40. Rc2 {[%clk 0:01:11]}  g5 {[%clk 0:00:29]} 41. Kf3 {[%clk 0:01:10]}  g4+ {[%clk 0:00:29]} 42. Ke3 {[%clk 0:01:10]}  Re4+ {[%clk 0:00:29]} 43. Kd2 {[%clk 0:01:10]}  f4 {[%clk 0:00:29]} 44. Rc1 {[%clk 0:01:06]}  f3 {[%clk 0:00:29]} 45. Re1 {[%clk 0:01:06]}  Rxe1 {[%clk 0:00:28]} 46. Kxe1 {[%clk 0:01:02]}  Kd7 {[%clk 0:00:28]} 47. Kd2 {[%clk 0:01:02]}  Ke6 {[%clk 0:00:28]} 48. Ne1 {[%clk 0:01:03]}  Kd5 {[%clk 0:00:18]} 49. Kd3 {[%clk 0:00:58]}  c5 {[%clk 0:00:19]} 50. Nc2 {[%clk 0:00:58]}  c4+ {[%clk 0:00:17]} 51. Ke3 {[%clk 0:00:56]}  Be5 {[%clk 0:00:17]} 52. Na3 {[%clk 0:00:53]}  Bxc3 {[%clk 0:00:16]} 53. Nxb5 {[%clk 0:00:54]}  Bxb4 {[%clk 0:00:16]} 54. Nc7+ {[%clk 0:00:54]}  Ke5 {[%clk 0:00:15]} 55. Nb5 {[%clk 0:00:53]}  Bc5+ {[%clk 0:00:14]} 56. Kd2 {[%clk 0:00:53]}  Bxf2 {[%clk 0:00:15]} 57. Kc3 {[%clk 0:00:52]}  g3 {[%clk 0:00:15]} 0-1

[Event "January 2 Early 2024"]
[Site "https://www.chess.com"]
[Date "2024.01.02"]
[Round "6"]
[White "Rasulov, Vugar"]
[Black "Andrews, Todd"]
[Result "1-0"]
[Board "52"]
[TimeControl "180+1"]
[WhiteFideId "13402390"]
[BlackFideId "2012456"]
[WhiteElo "2962"]
[BlackElo "2618"]
[WhiteTeam "AZE"]
[BlackTeam "USA"]
[WhiteClock "0:01:02"]
[BlackClock "0:00:00"]

1. a3 {[%clk 0:03:00]}  d5 {[%clk 0:02:57]} 2. b4 {[%clk 0:03:01]}  Bf5 {[%clk 0:02:55]} 3. Bb2 {[%clk 0:03:01]}  e6 {[%clk 0:02:56]} 4. g3 {[%clk 0:03:01]}  Nf6 {[%clk 0:02:56]} 5. Bg2 {[%clk 0:03:01]}  c6 {[%clk 0:02:56]} 6. Nf3 {[%clk 0:03:02]}  h6 {[%clk 0:02:55]} 7. O-O {[%clk 0:03:02]}  Be7 {[%clk 0:02:55]} 8. d3 {[%clk 0:03:01]}  O-O {[%clk 0:02:55]} 9. c4 {[%clk 0:03:02]}  Nbd7 {[%clk 0:02:55]} 10. Nc3 {[%clk 0:03:01]}  a5 {[%clk 0:02:54]} 11. b5 {[%clk 0:03:01]}  Re8 {[%clk 0:02:50]} 12. bxc6 {[%clk 0:03:00]}  bxc6 {[%clk 0:02:50]} 13. Nd4 {[%clk 0:03:00]}  Qb6 {[%clk 0:02:44]} 14. Na4 {[%clk 0:02:58]}  Qc7 {[%clk 0:02:35]} 15. cxd5 {[%clk 0:02:54]}  cxd5 {[%clk 0:02:31]} 16. Rc1 {[%clk 0:02:51]}  Qb7 {[%clk 0:02:17]} 17. Nxf5 {[%clk 0:02:50]}  exf5 {[%clk 0:02:18]} 18. Rb1 {[%clk 0:02:48]}  Qc6 {[%clk 0:02:14]} 19. Rc1 {[%clk 0:02:47]}  Qb7 {[%clk 0:02:12]} 20. Bxf6 {[%clk 0:02:44]}  Nxf6 {[%clk 0:02:11]} 21. Nc5 {[%clk 0:02:41]}  Qb6 {[%clk 0:02:04]} 22. d4 {[%clk 0:02:41]}  Ne4 {[%clk 0:02:00]} 23. a4 {[%clk 0:02:26]}  Rad8 {[%clk 0:01:47]} 24. Nxe4 {[%clk 0:02:05]}  fxe4 {[%clk 0:01:42]} 25. e3 {[%clk 0:02:06]}  Rc8 {[%clk 0:01:40]} 26. Rb1 {[%clk 0:02:05]}  Bb4 {[%clk 0:01:40]} 27. Qh5 {[%clk 0:02:03]}  Red8 {[%clk 0:01:20]} 28. Bh3 {[%clk 0:02:01]}  Rc2 {[%clk 0:01:14]} 29. Rbc1 {[%clk 0:01:48]}  Qc6 {[%clk 0:01:14]} 30. Rxc2 {[%clk 0:01:46]}  Qxc2 {[%clk 0:01:14]} 31. Qd1 {[%clk 0:01:44]}  Qc6 {[%clk 0:01:03]} 32. Qb3 {[%clk 0:01:41]}  g6 {[%clk 0:00:58]} 33. Rb1 {[%clk 0:01:34]}  Rb8 {[%clk 0:00:56]} 34. Bf1 {[%clk 0:01:26]}  Rc8 {[%clk 0:00:48]} 35. Bb5 {[%clk 0:01:11]}  Qc2 {[%clk 0:00:48]} 36. Ba6 {[%clk 0:01:10]}  Qxb3 {[%clk 0:00:42]} 37. Rxb3 {[%clk 0:01:11]}  Rc1+ {[%clk 0:00:42]} 38. Kg2 {[%clk 0:01:11]}  Ra1 {[%clk 0:00:38]} 39. Bb7 {[%clk 0:01:09]}  Rxa4 {[%clk 0:00:33]} 40. Bxd5 {[%clk 0:01:10]}  Kg7 {[%clk 0:00:26]} 41. Bxe4 {[%clk 0:01:08]}  Ra2 {[%clk 0:00:26]} 42. Bd5 {[%clk 0:01:07]}  Be1 {[%clk 0:00:20]} 43. Kf1 {[%clk 0:01:07]}  Ra1 {[%clk 0:00:18]} 44. Ke2 {[%clk 0:01:06]}  a4 {[%clk 0:00:18]} 45. Rb7 {[%clk 0:01:05]}  a3 {[%clk 0:00:16]} 46. Rxf7+ {[%clk 0:01:05]}  Kh8 {[%clk 0:00:16]} 47. Ra7 {[%clk 0:01:05]}  Bb4 {[%clk 0:00:14]} 48. h4 {[%clk 0:01:04]}  h5 {[%clk 0:00:13]} 49. Kf3 {[%clk 0:01:04]}  Rf1 {[%clk 0:00:10]} 50. Bc4 {[%clk 0:01:03]}  Rc1 {[%clk 0:00:09]} 51. Bd3 {[%clk 0:01:03]}  Rc6 {[%clk 0:00:04]} 52. d5 {[%clk 0:01:02]}  Rf6+ {[%clk 0:00:04]} 53. Ke2 {[%clk 0:01:02]}  Rd6 {[%clk 0:00:00]} 54. e4 {[%clk 0:01:02]} 1-0

[Event "January 2 Early 2024"]
[Site "https://www.chess.com"]
[Date "2024.01.02"]
[Round "6"]
[White "AmanteDeMoi"]
[Black "Garcia Ramos, Daniel"]
[Result "1/2-1/2"]
[Board "60"]
[TimeControl "180+1"]
[BlackFideId "32010311"]
[WhiteElo "2570"]
[BlackElo "2758"]
[BlackTeam "ESP"]
[WhiteClock "0:00:38"]
[BlackClock "0:00:24"]

1. Nf3 {[%clk 0:03:00]}  g6 {[%clk 0:02:59]} 2. e3 {[%clk 0:03:00]}  Bg7 {[%clk 0:03:00]} 3. c4 {[%clk 0:03:00]}  c5 {[%clk 0:03:01]} 4. Nc3 {[%clk 0:03:00]}  Nc6 {[%clk 0:03:01]} 5. Be2 {[%clk 0:03:00]}  e6 {[%clk 0:03:02]} 6. O-O {[%clk 0:03:01]}  Nge7 {[%clk 0:03:02]} 7. d4 {[%clk 0:03:01]}  cxd4 {[%clk 0:03:02]} 8. Nxd4 {[%clk 0:03:02]}  O-O {[%clk 0:03:01]} 9. Nxc6 {[%clk 0:02:59]}  Nxc6 {[%clk 0:03:01]} 10. Qc2 {[%clk 0:02:58]}  d5 {[%clk 0:03:00]} 11. cxd5 {[%clk 0:02:57]}  exd5 {[%clk 0:03:00]} 12. Rd1 {[%clk 0:02:58]}  d4 {[%clk 0:03:00]} 13. Nb5 {[%clk 0:02:38]}  Bf5 {[%clk 0:02:56]} 14. e4 {[%clk 0:02:32]}  Be6 {[%clk 0:02:47]} 15. Bf4 {[%clk 0:02:32]}  Rc8 {[%clk 0:02:45]} 16. Nd6 {[%clk 0:02:24]}  Rc7 {[%clk 0:02:45]} 17. Nxb7 {[%clk 0:02:24]}  Rxb7 {[%clk 0:02:45]} 18. Qxc6 {[%clk 0:02:24]}  Rxb2 {[%clk 0:02:45]} 19. Bc4 {[%clk 0:02:11]}  Qc8 {[%clk 0:02:29]} 20. Qxc8 {[%clk 0:02:06]}  Rxc8 {[%clk 0:02:30]} 21. Bxe6 {[%clk 0:02:02]}  fxe6 {[%clk 0:02:31]} 22. e5 {[%clk 0:02:00]}  Rc4 {[%clk 0:02:21]} 23. h4 {[%clk 0:01:48]}  Bf8 {[%clk 0:02:12]} 24. a4 {[%clk 0:01:46]}  a5 {[%clk 0:02:11]} 25. Rd3 {[%clk 0:01:41]}  Bc5 {[%clk 0:02:07]} 26. Bg3 {[%clk 0:01:37]}  Rc3 {[%clk 0:02:06]} 27. Rdd1 {[%clk 0:01:25]}  d3 {[%clk 0:02:03]} 28. Kf1 {[%clk 0:01:24]}  Kf7 {[%clk 0:01:57]} 29. Rac1 {[%clk 0:01:24]}  Rcc2 {[%clk 0:01:40]} 30. Ra1 {[%clk 0:01:17]}  Rb3 {[%clk 0:01:17]} 31. Rab1 {[%clk 0:01:16]}  Rxb1 {[%clk 0:01:12]} 32. Rxb1 {[%clk 0:01:17]}  Bb4 {[%clk 0:01:13]} 33. Rd1 {[%clk 0:01:13]}  d2 {[%clk 0:01:02]} 34. Bf4 {[%clk 0:01:12]}  Ra2 {[%clk 0:01:03]} 35. g3 {[%clk 0:01:09]}  Ke7 {[%clk 0:00:50]} 36. Ke2 {[%clk 0:01:08]}  Rxa4 {[%clk 0:00:50]} 37. Bxd2 {[%clk 0:01:08]}  Ra2 {[%clk 0:00:50]} 38. Kd3 {[%clk 0:01:07]}  Rxd2+ {[%clk 0:00:50]} 39. Rxd2 {[%clk 0:01:08]}  Bxd2 {[%clk 0:00:50]} 40. Kxd2 {[%clk 0:01:09]}  Kd7 {[%clk 0:00:51]} 41. Kd3 {[%clk 0:01:09]}  Kc6 {[%clk 0:00:52]} 42. Kc4 {[%clk 0:01:10]}  a4 {[%clk 0:00:52]} 43. f4 {[%clk 0:01:02]}  h5 {[%clk 0:00:51]} 44. Kb4 {[%clk 0:00:57]}  Kd5 {[%clk 0:00:51]} 45. Kxa4 {[%clk 0:00:57]}  Ke4 {[%clk 0:00:49]} 46. Kb5 {[%clk 0:00:57]}  Kf3 {[%clk 0:00:47]} 47. Kc6 {[%clk 0:00:58]}  Kxg3 {[%clk 0:00:47]} 48. Kd6 {[%clk 0:00:58]}  Kxf4 {[%clk 0:00:27]} 49. Kxe6 {[%clk 0:00:58]}  g5 {[%clk 0:00:27]} 50. Kf6 {[%clk 0:00:43]}  gxh4 {[%clk 0:00:25]} 51. e6 {[%clk 0:00:44]}  h3 {[%clk 0:00:25]} 52. e7 {[%clk 0:00:44]}  h2 {[%clk 0:00:25]} 53. e8=Q {[%clk 0:00:45]}  h1=Q {[%clk 0:00:26]} 54. Qe5+ {[%clk 0:00:45]}  Kg4 {[%clk 0:00:26]} 55. Qg5+ {[%clk 0:00:45]}  Kh3 {[%clk 0:00:24]} 56. Qxh5+ {[%clk 0:00:44]}  Kg2 {[%clk 0:00:25]} 57. Qe2+ {[%clk 0:00:43]}  Kg1 {[%clk 0:00:25]} 58. Qe1+ {[%clk 0:00:37]}  Kg2 {[%clk 0:00:24]} 59. Qe4+ {[%clk 0:00:37]}  Kg1 {[%clk 0:00:24]} 60. Qxh1+ {[%clk 0:00:38]}  Kxh1 {[%clk 0:00:24]} 1/2-1/2

[Event "January 2 Early 2024"]
[Site "https://www.chess.com"]
[Date "2024.01.02"]
[Round "6"]
[White "Agibileg, Uurtsaikh"]
[Black "Womacka, Mathias"]
[Result "1-0"]
[Board "65"]
[TimeControl "180+1"]
[WhiteFideId "4901606"]
[BlackFideId "4611390"]
[WhiteElo "2684"]
[BlackElo "2553"]
[WhiteTeam "MGL"]
[BlackTeam "GER"]
[WhiteClock "0:00:57"]
[BlackClock "0:00:00"]

1. d4 {[%clk 0:03:00]}  Nf6 {[%clk 0:02:58]} 2. c4 {[%clk 0:03:01]}  e6 {[%clk 0:02:54]} 3. Nc3 {[%clk 0:03:01]}  Bb4 {[%clk 0:02:52]} 4. f3 {[%clk 0:02:59]}  O-O {[%clk 0:02:44]} 5. a3 {[%clk 0:02:58]}  Bxc3+ {[%clk 0:02:43]} 6. bxc3 {[%clk 0:02:59]}  b6 {[%clk 0:02:42]} 7. e4 {[%clk 0:02:59]}  Ne8 {[%clk 0:02:39]} 8. h4 {[%clk 0:02:57]}  Ba6 {[%clk 0:02:35]} 9. h5 {[%clk 0:02:57]}  h6 {[%clk 0:02:32]} 10. Bd3 {[%clk 0:02:56]}  Nc6 {[%clk 0:02:26]} 11. Bf4 {[%clk 0:02:53]}  Na5 {[%clk 0:02:22]} 12. Qe2 {[%clk 0:02:53]}  d5 {[%clk 0:02:20]} 13. cxd5 {[%clk 0:02:51]}  Bxd3 {[%clk 0:02:15]} 14. Qxd3 {[%clk 0:02:52]}  exd5 {[%clk 0:02:14]} 15. e5 {[%clk 0:02:51]}  c5 {[%clk 0:02:11]} 16. Ne2 {[%clk 0:02:51]}  Nc7 {[%clk 0:02:10]} 17. Be3 {[%clk 0:02:47]}  Nc4 {[%clk 0:02:06]} 18. f4 {[%clk 0:02:44]}  f5 {[%clk 0:01:45]} 19. dxc5 {[%clk 0:02:31]}  Ne6 {[%clk 0:01:28]} 20. cxb6 {[%clk 0:02:30]}  axb6 {[%clk 0:01:29]} 21. O-O {[%clk 0:02:29]}  Rxa3 {[%clk 0:01:22]} 22. Rxa3 {[%clk 0:02:25]}  Nxa3 {[%clk 0:01:23]} 23. Ng3 {[%clk 0:02:25]}  Nc4 {[%clk 0:01:15]} 24. Nxf5 {[%clk 0:02:25]}  Nxe3 {[%clk 0:01:14]} 25. Nxe3 {[%clk 0:02:24]}  Nxf4 {[%clk 0:01:11]} 26. Qb5 {[%clk 0:02:24]}  Qg5 {[%clk 0:01:07]} 27. e6 {[%clk 0:01:34]}  Nh3+ {[%clk 0:00:48]} 28. Kh2 {[%clk 0:01:32]}  Qxe3 {[%clk 0:00:42]} 29. Rxf8+ {[%clk 0:01:28]}  Kxf8 {[%clk 0:00:43]} 30. Qd7 {[%clk 0:01:28]}  Qe5+ {[%clk 0:00:24]} 31. Kxh3 {[%clk 0:01:23]}  Qxh5+ {[%clk 0:00:22]} 32. Kg3 {[%clk 0:01:23]}  Qg5+ {[%clk 0:00:22]} 33. Kf3 {[%clk 0:01:23]}  Qe7 {[%clk 0:00:19]} 34. Qxd5 {[%clk 0:01:21]}  Qf6+ {[%clk 0:00:18]} 35. Ke4 {[%clk 0:01:20]}  Ke7 {[%clk 0:00:18]} 36. Qd7+ {[%clk 0:01:19]}  Kf8 {[%clk 0:00:18]} 37. Kd5 {[%clk 0:01:14]}  h5 {[%clk 0:00:16]} 38. c4 {[%clk 0:01:13]}  h4 {[%clk 0:00:16]} 39. Kc6 {[%clk 0:01:13]}  g5 {[%clk 0:00:14]} 40. Kxb6 {[%clk 0:01:12]}  g4 {[%clk 0:00:13]} 41. c5 {[%clk 0:01:04]}  h3 {[%clk 0:00:13]} 42. gxh3 {[%clk 0:01:02]}  gxh3 {[%clk 0:00:14]} 43. c6 {[%clk 0:01:02]}  h2 {[%clk 0:00:14]} 44. Qd6+ {[%clk 0:01:02]}  Qe7 {[%clk 0:00:11]} 45. Qf4+ {[%clk 0:01:00]}  Ke8 {[%clk 0:00:11]} 46. Qb8+ {[%clk 0:00:57]}  Qd8+ {[%clk 0:00:00]} 47. c7 {[%clk 0:00:57]} 1-0

[Event "January 2 Early 2024"]
[Site "https://www.chess.com"]
[Date "2024.01.02"]
[Round "6"]
[White "Arslanov, Shamil"]
[Black "Ismayil, Malak"]
[Result "1-0"]
[Board "66"]
[TimeControl "180+1"]
[WhiteFideId "4192826"]
[BlackFideId "13412604"]
[WhiteElo "2684"]
[BlackElo "2552"]
[WhiteTeam "RUS"]
[BlackTeam "AZE"]
[WhiteClock "0:00:12"]
[BlackClock "0:00:01"]

1. d4 {[%clk 0:02:44]}  d5 {[%clk 0:02:58]} 2. e4 {[%clk 0:02:39]}  dxe4 {[%clk 0:02:57]} 3. Nc3 {[%clk 0:02:39]}  Nf6 {[%clk 0:02:56]} 4. f3 {[%clk 0:02:19]}  exf3 {[%clk 0:02:52]} 5. Nxf3 {[%clk 0:02:20]}  Bg4 {[%clk 0:02:44]} 6. h3 {[%clk 0:02:18]}  Bxf3 {[%clk 0:02:34]} 7. Qxf3 {[%clk 0:02:19]}  c6 {[%clk 0:02:35]} 8. g4 {[%clk 0:02:18]}  e6 {[%clk 0:02:32]} 9. g5 {[%clk 0:02:17]}  Nd5 {[%clk 0:02:31]} 10. Bd3 {[%clk 0:02:15]}  Bb4 {[%clk 0:02:28]} 11. O-O {[%clk 0:02:12]}  Qe7 {[%clk 0:02:18]} 12. Ne4 {[%clk 0:01:52]}  Nd7 {[%clk 0:01:57]} 13. c3 {[%clk 0:01:43]}  Ba5 {[%clk 0:01:55]} 14. c4 {[%clk 0:01:31]}  Nb4 {[%clk 0:01:52]} 15. Bb1 {[%clk 0:00:29]}  Bc7 {[%clk 0:01:35]} 16. a3 {[%clk 0:00:24]}  Na6 {[%clk 0:01:33]} 17. b4 {[%clk 0:00:24]}  Bb6 {[%clk 0:01:18]} 18. Qxf7+ {[%clk 0:00:13]}  Qxf7 {[%clk 0:01:14]} 19. Nd6+ {[%clk 0:00:13]}  Ke7 {[%clk 0:01:14]} 20. Rxf7+ {[%clk 0:00:13]}  Kxd6 {[%clk 0:01:13]} 21. Bf4+ {[%clk 0:00:10]}  e5 {[%clk 0:01:13]} 22. c5+ {[%clk 0:00:11]}  Naxc5 {[%clk 0:01:07]} 23. bxc5+ {[%clk 0:00:10]}  Nxc5 {[%clk 0:00:55]} 24. Bxe5+ {[%clk 0:00:09]}  Kd5 {[%clk 0:00:53]} 25. Ba2+ {[%clk 0:00:08]}  Ke4 {[%clk 0:00:50]} 26. Re1+ {[%clk 0:00:08]}  Kd3 {[%clk 0:00:49]} 27. dxc5 {[%clk 0:00:05]}  Bxc5+ {[%clk 0:00:49]} 28. Kg2 {[%clk 0:00:05]}  Rhf8 {[%clk 0:00:43]} 29. Bxg7 {[%clk 0:00:06]}  Rxf7 {[%clk 0:00:38]} 30. Bxf7 {[%clk 0:00:07]}  Bxa3 {[%clk 0:00:38]} 31. Rf1 {[%clk 0:00:06]}  Bc5 {[%clk 0:00:36]} 32. h4 {[%clk 0:00:06]}  a5 {[%clk 0:00:35]} 33. h5 {[%clk 0:00:06]}  a4 {[%clk 0:00:35]} 34. g6 {[%clk 0:00:07]}  hxg6 {[%clk 0:00:36]} 35. h6 {[%clk 0:00:07]}  a3 {[%clk 0:00:20]} 36. h7 {[%clk 0:00:08]}  a2 {[%clk 0:00:18]} 37. h8=Q {[%clk 0:00:07]}  Rxh8 {[%clk 0:00:17]} 38. Bxh8 {[%clk 0:00:08]}  b5 {[%clk 0:00:15]} 39. Bxa2 {[%clk 0:00:07]}  b4 {[%clk 0:00:15]} 40. Bb1+ {[%clk 0:00:08]}  Kc4 {[%clk 0:00:15]} 41. Bxg6 {[%clk 0:00:09]}  b3 {[%clk 0:00:15]} 42. Rc1+ {[%clk 0:00:09]}  Kb4 {[%clk 0:00:12]} 43. Bc3+ {[%clk 0:00:09]}  Kb5 {[%clk 0:00:06]} 44. Bd3+ {[%clk 0:00:09]}  Kb6 {[%clk 0:00:04]} 45. Rb1 {[%clk 0:00:10]}  Bd6 {[%clk 0:00:04]} 46. Rxb3+ {[%clk 0:00:11]}  Kc7 {[%clk 0:00:05]} 47. Kf3 {[%clk 0:00:11]}  c5 {[%clk 0:00:05]} 48. Ke4 {[%clk 0:00:12]}  Kc6 {[%clk 0:00:06]} 49. Bc4 {[%clk 0:00:12]}  Bc7 {[%clk 0:00:06]} 50. Bd5+ {[%clk 0:00:13]}  Kd7 {[%clk 0:00:06]} 51. Rb7 {[%clk 0:00:14]}  Kc8 {[%clk 0:00:07]} 52. Be5 {[%clk 0:00:14]}  Bd8 {[%clk 0:00:06]} 53. Kf5 {[%clk 0:00:14]}  c4 {[%clk 0:00:05]} 54. Ke6 {[%clk 0:00:12]}  Bc7 {[%clk 0:00:01]} 55. Rxc7+ {[%clk 0:00:12]}  Kd8 {[%clk 0:00:01]} 56. Rh7 {[%clk 0:00:12]}  Kc8 {[%clk 0:00:01]} 57. Rh8# {[%clk 0:00:12]} 1-0